[Event "1000GM Spring GM-B 2024"]
[Site "New York"]
[Date "2024.03.28"]
[Round "1.1"]
[White "Griffith, Kyron"]
[Black "Eidelman, Gabriel"]
[Result "1-0"]
[ECO "C07"]
[WhiteElo "2352"]
[BlackElo "2374"]
[Annotator "RC"]
[PlyCount "99"]
[EventDate "2024.03.26"]
[EventType "tourn"]
[EventCountry "USA"]
[SourceTitle "playchess.com"]
[Source "ChessBase"]
[SourceQuality "1"]
[TimeControl "5400+30"]

1. e4 {[%emt 0:02:42]} e6 {[%emt 0:00:10]} 2. d4 {[%emt 0:01:25]} d5 {[%emt 0:00:08]} 3. Nd2 {[%emt 0:00:23]} c5 {[%emt 0:00:16]} 4. Ngf3 {[%emt 0:00:44]} cxd4 {[%emt 0:00:10]} 5. Nxd4 {[%emt 0:00:52]} Nc6 {[%emt 0:00:09]} 6. Bb5 {[%emt 0:00:54]} Bd7 {[%emt 0:00:09]} 7. Nxc6 {[%emt 0:00:07]} bxc6 {[%emt 0:00:07]} 8. Bd3 {[%emt 0:00:04]} Bd6 {[%emt 0:00:12]} 9. Qe2 {[%emt 0:01:36]} Ne7 {[%emt 0:00:13]} 10. Nf3 {[%emt 0:04:47]} Ng6 {[%emt 0:00:16]} 11. O-O {[%emt 0:03:46]} O-O {[%emt 0:00:16]} 12. Re1 {[%emt 0:08:21]} e5 {[%emt 0:07:09]} 13. Rd1 {[%emt 0:17:06]} Qc7 {[%emt 0:11:45]} 14. c4 {[%emt 0:09:32]} Rae8 {[%emt 0:11:21]} 15. cxd5 {[%emt 0:06:14]} cxd5 {[%emt 0:00:38]} 16. Ne1 {[%emt 0:05:38]} Kh8 {[%emt 0:10:34]} 17. Be3 {[%emt 0:06:43]} d4 {[%emt 0:14:12]} 18. Bd2 {[%emt 0:00:57]} Qb7 {[%emt 0:01:30]} 19. b3 {[%emt 0:01:22]} Bb4 {[%emt 0:05:34]} 20. Ba6 {[%emt 0:04:41]} Qb6 {[%emt 0:00:07]} 21. Bxb4 {[%emt 0:00:17]} Qxb4 {[%emt 0:00:07]} 22. Nd3 {[%emt 0:01:22]} Qb6 {[%emt 0:05:54]} 23. Bc4 {[%emt 0:00:31]} f5 {[%emt 0:00:42]} 24. exf5 {[%emt 0:02:44]} Bxf5 {[%emt 0:00:53]} 25. f3 {[%emt 0:01:04]} e4 {[%emt 0:09:26]} 26. fxe4 {[%emt 0:00:05]} Rxe4 {[%emt 0:06:35]} 27. Qd2 {[%emt 0:01:13]} Re3 {[%emt 0:03:58]} 28. Rf1 {[%emt 0:00:42]} Rf6 {[%emt 0:02:30]} 29. Rac1 {[%emt 0:07:29]} h6 {[%emt 0:01:59]} 30. Nb4 {[%emt 0:03:14]} d3 {[%emt 0:05:05]} 31. Nd5 {[%emt 0:02:15]} Re2+ {[%emt 0:00:04]} 32. Nxb6 {[%emt 0:00:03]} Rxd2 {[%emt 0:00:04]} 33. Nd5 {[%emt 0:00:35]} Rf8 {[%emt 0:00:50]} 34. Ne3 {[%emt 0:02:35]} Be4 {[%emt 0:00:45]} 35. Rxf8+ {[%emt 0:00:24]} Nxf8 {[%emt 0:00:03]} 36. Rf1 {[%emt 0:00:15]} Ng6 {[%emt 0:00:31]} 37. Rf2 {[%emt 0:00:30]} Rxf2 {[%emt 0:01:22]} 38. Kxf2 {[%emt 0:00:02]} Nf4 {[%emt 0:01:12]} 39. g3 {[%emt 0:01:08]} Ne2 {[%emt 0:00:50]} 40. Nf1 {[%emt 0:00:11]} Bh7 {[%emt 0:02:01]} 41. Ke3 {[%emt 0:00:30]} Nc3 {[%emt 0:00:32]} 42. a3 {[%emt 0:00:42]} Nd1+ {[%emt 0:00:30]} 43. Kd4 {[%emt 0:00:21]} Nf2 {[%emt 0:00:14]} 44. b4 {[%emt 0:00:52]} g5 {[%emt 0:00:51]} 45. a4 {[%emt 0:00:27]} Kg7 {[%emt 0:00:29]} 46. b5 {[%emt 0:00:44]} Kf6 {[%emt 0:00:36]} 47. a5 {[%emt 0:00:10]} Ke7 {[%emt 0:00:30]} 48. b6 {[%emt 0:00:28]} axb6 {[%emt 0:00:03]} 49. a6 {[%emt 0:00:03]} Kd6 {[%emt 0:00:53]} 50. Bd5 {[%emt 0:06:40]} 1-0

[Event "1000GM Spring GM-B 2024"]
[Site "New York"]
[Date "2024.03.28"]
[Round "1.2"]
[White "Nagy, Gabor"]
[Black "Kaliksteyn, Alexander"]
[Result "1-0"]
[ECO "D45"]
[WhiteElo "2436"]
[BlackElo "2356"]
[Annotator "TA"]
[PlyCount "69"]
[EventDate "2024.03.26"]
[EventType "tourn"]
[EventCountry "USA"]
[SourceTitle "playchess.com"]
[Source "ChessBase"]
[SourceQuality "1"]
[TimeControl "5400+30"]

{[%evp 13,69,-24,10,13,19,10,21,16,22,11,29,0,0,-16,18,0,16,0,0,0,0,10,8,20,63,48,149,164,179,185,272,236,257,54,72,53,160,167,170,175,160,107,161,134,169,166,169,185,287,287,280,241,1008,985,1030,1026,914,864]} 1. d4 {[%emt 0:00:13]} d5 {[%emt 0:00:04]} 2. c4 {[%emt 0:00:30]} e6 {[%emt 0:00:05]} 3. Nc3 {[%emt 0:01:08]} c6 {[%emt 0:00:13]} 4. e3 {[%emt 0:01:22]} Nf6 {[%emt 0:00:41]} 5. Nf3 {[%emt 0:01:18]} Nbd7 {[%emt 0:00:09]} 6. Qc2 {[%emt 0:01:44]} Bd6 {[%emt 0:00:22]} 7. Bd2 {[%emt 0:01:30]} a6 {[%emt 0:27:33]} 8. e4 {[%emt 0:07:18]} Nxe4 {[%emt 0:01:40]} 9. Nxe4 {[%emt 0:00:26]} dxe4 {[%emt 0:00:03]} 10. Qxe4 {[%emt 0:00:13] The position is equal.} c5 {[%emt 0:05:47]} 11. O-O-O {[%emt 0:07:27]} Nf6 {[%emt 0:00:41]} 12. Qc2 {[%emt 0:06:13]} cxd4 {[%emt 0:01:35]} 13. Nxd4 {[%emt 0:01:14]} Bd7 {[%emt 0:11:05][%cal Ob7b5]} 14. Kb1 {[%emt 0:02:48]} Qc7 {[%emt 0:22:26][%cal Oe8g8]} 15. Be2 {[%emt 0:01:07]} O-O {[%emt 0:08:12][%cal Oa8c8]} 16. g4 {[%emt 0:06:07]} Bc5 {[%emt 0:06:00]} 17. Nb3 {[%emt 0:07:54]} Bc6 {[%emt 0:00:22]} (17... Bxf2 $2 18. g5 Ne8 19. Rhf1 $18 (19. Bb4 Ba4 $18)) 18. f3 {[%emt 0:02:55]} Ba4 {[%emt 0:00:40]} 19. Bd3 {[%emt 0:03:43]} g6 {[%emt 0:04:28] [#]} (19... h5 $14) 20. h4 $1 $16 {[%emt 0:01:04][%cal Bh2h4,Bh4h5,Bh5g6][%mdl 32]} Rfd8 {[%emt 0:01:50]} 21. h5 {[%emt 0:00:57]} Bf8 {[%emt 0:00:24] [#]} (21... e5 $142 22. Bg5 e4) 22. hxg6 $1 $18 {[%emt 0:03:43]} hxg6 {[%emt 0:00:12]} 23. Bc3 $2 {[%emt 0:06:08]} (23. Bxg6 $18 fxg6 24. g5) 23... Bg7 $14 {[%emt 0:00:09]} 24. Qe2 {[%emt 0:00:45]} (24. Rh4 {feels hotter.} Qf4 25. Rdh1 b5 26. Bxg6 bxc4 27. g5) 24... b5 {[%emt 0:02:00]} 25. Ba5 $16 {[%emt 0:03:56] White is more active.} ({Much weaker is} 25. cxb5 $6 Bxb3 26. axb3 axb5 $14) 25... Qe7 {[%emt 0:02:44]} 26. Bxd8 {[%emt 0:00:09]} Rxd8 {[%emt 0:00:01]} 27. Bc2 {[%emt 0:02:29]} ({Better is} 27. cxb5 Bxb3 28. axb3 axb5 29. Be4 (29. Bxb5 Nd5 $16)) 27... Rc8 {[%emt 0:00:40]} ({Avoid the trap} 27... bxc4 $2 28. Qxc4 Bb5 29. Qc5 $18) (27... Nd7 $16) 28. c5 {[%emt 0:00:47]} Bxb3 {[%emt 0:01:25]} 29. Bxb3 {[%emt 0:00:03]} Nd7 {[%emt 0:01:08]} 30. f4 {[%emt 0:02:53][%cal Bf3f4,Bf4f5][%mdl 32]} Nxc5 {[%emt 0:00:09] [#]} (30... Rxc5 {keeps fighting.} 31. Rhf1 Bf8) 31. f5 $1 $18 {[%emt 0:00:17][%mdl 512]} Nxb3 {[%emt 0:01:34]} 32. axb3 {[%emt 0:00:07] Threatens to win with fxg6.} Bf6 $2 {[%emt 0:01:33]} (32... g5 33. fxe6 Qxe6 34. Qxe6 fxe6) 33. fxg6 {[%emt 0:00:49] White is clearly winning.} fxg6 {[%emt 0:00:01]} 34. Rh6 {[%emt 0:01:04]} Bg7 {[%emt 0:00:58]} 35. Rxg6 {[%emt 0:00:38] Weighted Error Value: White=0.19 (very precise) /Black=0.31.  Missed win:     	White=1     	---        Mistake:       	White=1     	Black=6      Inaccurate:     	White=1     	Black=2      OK:         	White=10    	Black=9      Best:        	White=2     	Black=1      Strong:       	White=1     	---        Brilliant:      	White=1     	---} 1-0

[Event "1000GM Spring GM-B 2024"]
[Site "New York"]
[Date "2024.03.28"]
[Round "1.3"]
[White "Girish, A. Koushik"]
[Black "Sinha, Sahil"]
[Result "1/2-1/2"]
[ECO "A17"]
[WhiteElo "2499"]
[BlackElo "2299"]
[Annotator "RC"]
[PlyCount "67"]
[EventDate "2024.03.26"]
[EventType "tourn"]
[EventCountry "USA"]
[SourceTitle "playchess.com"]
[Source "ChessBase"]
[SourceQuality "1"]
[TimeControl "5400+30"]

1. Nf3 {[%emt 0:00:21]} Nf6 {[%emt 0:00:19]} 2. c4 {[%emt 0:00:21]} e6 {[%emt 0:00:20]} 3. Nc3 {[%emt 0:04:01]} d5 {[%emt 0:01:52]} 4. e3 {[%emt 0:00:22]} Be7 {[%emt 0:04:01]} 5. Qc2 {[%emt 0:01:24]} O-O {[%emt 0:01:11]} 6. g4 {[%emt 0:03:59]} Nxg4 {[%emt 0:04:45]} 7. Rg1 {[%emt 0:00:12]} Nf6 {[%emt 0:01:33]} 8. b3 {[%emt 0:00:27]} c5 {[%emt 0:00:56]} 9. Bb2 {[%emt 0:01:34]} Nc6 {[%emt 0:03:24]} 10. cxd5 {[%emt 0:01:30]} exd5 {[%emt 0:02:51]} 11. Ne2 {[%emt 0:04:53]} d4 {[%emt 0:10:50]} 12. Nf4 {[%emt 0:16:18]} Bd6 {[%emt 0:01:34]} 13. Nd3 {[%emt 0:00:47]} Bf5 {[%emt 0:03:14]} 14. a3 {[%emt 0:00:20]} h6 {[%emt 0:06:56]} 15. b4 {[%emt 0:34:16]} dxe3 {[%emt 0:16:31]} 16. fxe3 {[%emt 0:00:35]} cxb4 {[%emt 0:00:35]} 17. axb4 {[%emt 0:04:22]} Nxb4 {[%emt 0:00:40]} 18. Qb3 {[%emt 0:03:12]} a5 {[%emt 0:01:32]} 19. Nxb4 {[%emt 0:01:40]} Bxb4 {[%emt 0:00:13]} 20. Nd4 {[%emt 0:00:44]} Be6 {[%emt 0:09:01]} 21. Qd3 {[%emt 0:09:45]} Qe7 {[%emt 0:01:05]} 22. Be2 {[%emt 0:10:27]} Rfd8 {[%emt 0:07:23]} 23. Kf2 {[%emt 0:00:00]} a4 {[%emt 0:04:41]} 24. Rad1 {[%emt 0:00:00]} a3 {[%emt 0:00:33]} 25. Ba1 {[%emt 0:00:00]} Ra5 {[%emt 0:02:00]} 26. Bf3 {[%emt 0:00:00]} Rg5 {[%emt 0:02:46]} 27. h4 {[%emt 0:00:00]} Rxg1 {[%emt 0:02:02]} 28. Rxg1 {[%emt 0:00:00]} h5 {[%emt 0:00:09]} 29. Rg5 {[%emt 0:00:34]} a2 {[%emt 0:01:22]} 30. Ke2 {[%emt 0:00:44]} Kf8 {[%emt 0:03:42]} 31. Qb5 {[%emt 0:00:37]} Bd7 {[%emt 0:01:26]} 32. Qxb7 {[%emt 0:00:45]} Bg4 {[%emt 0:01:52]} 33. Qxe7+ Bxe7 34. Ra5 {[%emt 0:03:20]} 1/2-1/2

[Event "1000GM Spring GM-B 2024"]
[Site "New York"]
[Date "2024.03.28"]
[Round "1.4"]
[White "Mandizha, Farai"]
[Black "Luo, Terry"]
[Result "1-0"]
[ECO "E94"]
[WhiteElo "2380"]
[BlackElo "2333"]
[Annotator "RC"]
[PlyCount "37"]
[EventDate "2024.03.26"]
[EventType "tourn"]
[EventCountry "USA"]
[SourceTitle "playchess.com"]
[Source "ChessBase"]
[SourceQuality "1"]
[TimeControl "5400+30"]

1. d4 {[%emt 0:13:29]} Nf6 {[%emt 0:00:04]} 2. Nf3 {[%emt 0:01:00]} g6 {[%emt 0:00:05]} 3. c4 {[%emt 0:00:29]} Bg7 {[%emt 0:00:04]} 4. Nc3 {[%emt 0:00:22]} O-O {[%emt 0:00:10]} 5. e4 {[%emt 0:00:02]} d6 {[%emt 0:00:03]} 6. Be2 {[%emt 0:03:08]} e5 {[%emt 0:00:04]} 7. Be3 {[%emt 0:00:04]} exd4 {[%emt 0:01:19]} 8. Nxd4 {[%emt 0:00:07]} Re8 {[%emt 0:00:01]} 9. f3 {[%emt 0:01:58]} c6 {[%emt 0:01:33]} 10. O-O {[%emt 0:11:10]} d5 {[%emt 0:00:53]} 11. cxd5 {[%emt 0:00:08]} cxd5 {[%emt 0:04:01]} 12. Qb3 {[%emt 0:01:26]} dxe4 {[%emt 0:19:14]} 13. Bc4 {[%emt 0:02:08]} Qe7 {[%emt 0:12:44]} 14. fxe4 {[%emt 0:17:31]} Nbd7 {[%emt 0:02:02]} 15. Nf3 {[%emt 0:07:10]} Rf8 {[%emt 0:14:51]} 16. Kh1 {[%emt 0:04:03]} Ng4 {[%emt 0:09:52]} 17. Nd5 {[%emt 0:10:41]} Qxe4 {[%emt 0:02:31]} 18. Bg1 {[%emt 0:02:53]} Nde5 {[%emt 0:08:32]} 19. Nd2 {[%emt 0:06:07]} 1-0

[Event "1000GM Spring GM-B 2024"]
[Site "New York"]
[Date "2024.03.28"]
[Round "1.5"]
[White "Furfine, Jacob"]
[Black "Paragua, Mark"]
[Result "0-1"]
[ECO "E96"]
[WhiteElo "2343"]
[BlackElo "2451"]
[Annotator "TA"]
[PlyCount "82"]
[EventDate "2024.03.26"]
[EventType "tourn"]
[EventCountry "USA"]
[SourceTitle "playchess.com"]
[Source "ChessBase"]
[SourceQuality "1"]
[TimeControl "5400+30"]

{[%evp 17,82,17,37,34,63,53,56,54,58,59,90,83,84,93,77,59,76,58,106,56,63,50,55,46,82,79,121,114,129,110,128,132,123,67,83,-189,-189,-181,-175,-162,-180,-212,-208,-308,-316,-289,-257,-246,-223,-287,-277,-485,-321,-391,-326,-403,-382,-358,-369,-715,-715,-629,-547,-741,-589,-1759,-1668]} 1. d4 {[%emt 0:00:03]} Nf6 {[%emt 0:00:12]} 2. Nf3 {[%emt 0:00:11]} g6 {[%emt 0:00:10]} 3. c4 {[%emt 0:00:09]} Bg7 {[%emt 0:00:06]} 4. Nc3 {[%emt 0:00:06]} O-O {[%emt 0:00:08]} 5. e4 {[%emt 0:00:11]} d6 {[%emt 0:01:08]} 6. Be2 {[%emt 0:00:28]} e5 {[%emt 0:00:26]} 7. O-O {[%emt 0:00:51]} Nbd7 {[%emt 0:00:37]} 8. Re1 {[%emt 0:03:28]} c6 {[%emt 0:01:03]} 9. Bf1 {[%emt 0:01:01]} a5 {[%emt 0:00:57]} 10. Be3 {[%emt 0:11:22]} h6 {[%emt 0:05:56]} 11. h3 {[%emt 0:08:57]} exd4 {[%emt 0:01:47]} 12. Nxd4 {[%emt 0:09:16] White is slightly better.} Re8 {[%emt 0:00:30]} 13. f3 {[%emt 0:01:09][%cal Bf2f3,Bf3f4][%mdl 32]} Nh5 {[%emt 0:04:14]} 14. Qd2 {[%emt 0:02:28]} Kh7 {[%emt 0:12:17]} 15. g4 {[%emt 0:06:15]} Nhf6 {[%emt 0:03:45]} 16. Bf2 {[%emt 0:05:09]} a4 {[%emt 0:03:35]} 17. f4 {[%emt 0:07:29]} Qa5 {[%emt 0:01:43] [#]} (17... Nc5 $14) 18. Rad1 {[%emt 0:00:58]} ({White should play} 18. Nc2 $1 $16) 18... Nc5 $14 {[%emt 0:04:39][%cal Bd7c5,Bc5e6,Be6f4][%mdl 32]} 19. Bg2 {[%emt 0:03:01]} Nfd7 {[%emt 0:02:36][%cal Bf6d7,Bd7b6,Bb6d7,Bd7e5][%mdl 32]} 20. Nc2 {[%emt 0:02:53]} Nb6 {[%emt 0:12:29]} 21. Qxd6 {[%emt 0:05:43]} Ne6 {[%emt 0:01:30]} 22. Bf1 {[%emt 0:05:41]} Nd7 {[%emt 0:21:11][%cal Og6g5]} 23. Qd2 {[%emt 0:02:52]} g5 {[%emt 0:01:14]} 24. f5 {[%emt 0:08:41]} Nf4 {[%emt 0:00:53]} 25. Nd4 {[%emt 0:01:32]} (25. Kh1 $16) 25... Ne5 {[%emt 0:01:22]} 26. Be3 $2 {[%emt 0:04:47][%mdl 8192] Now White is beyond hope.} (26. Qc2 $16 {and life is bright.}) 26... c5 $19 {[%emt 0:04:43]} 27. Bxf4 {[%emt 0:00:34]} gxf4 {[%emt 0:00:05]} 28. Qxf4 {[%emt 0:01:00]} cxd4 {[%emt 0:00:05]} 29. Nd5 {[%emt 0:00:15]} Bd7 {[%emt 0:01:24][%cal Od4d3]} 30. h4 {[%emt 0:02:18]} (30. Kh1 $142) 30... Bc6 {[%emt 0:02:08]} 31. g5 {[%emt 0:02:49][%cal Bg4g5,Bg5g6][%mdl 32]} Bxd5 {[%emt 0:03:06]} 32. cxd5 {[%emt 0:00:07]} Bf8 {[%emt 0:00:31]} 33. Re2 {[%emt 0:01:06]} a3 {[%emt 0:02:44] Hoping for ...d3.} 34. Bh3 $2 {[%emt 0:03:32]} (34. b3) 34... axb2 {[%emt 0:03:26]} 35. g6+ {[%emt 0:00:11]} Kh8 {[%emt 0:00:21]} ({Much less strong is} 35... fxg6 36. Rxb2 Kh8 37. fxg6 $19) 36. Rxb2 {[%emt 0:01:23]} Qc3 {[%emt 0:02:49]} ({Resist} 36... fxg6 37. fxg6 d3 38. h5 $19) 37. Rb3 {[%emt 0:00:20]} Qc2 {[%emt 0:00:08]} 38. Rd2 {[%emt 0:00:41]} (38. Rc1 Qxa2 39. Qg3) 38... Qc1+ {[%emt 0:00:23] Black is clearly winning.} 39. Bf1 {[%emt 0:00:12]} fxg6 {[%emt 0:00:55] [#] Threatens to win with ...d3.} 40. fxg6 {[%emt 0:00:30]} Bg7 {[%emt 0:00:10] ...Rf8 is the strong threat.} 41. Rxb7 {[%emt 0:00:48]} Rf8 {[%emt 0:01:13] Weighted Error Value: White=0.91/Black=0.30.  Loses game:     	White=1     	---        Mistake:       	White=5     	Black=1      Inaccurate:     	White=1     	Black=5      OK:         	White=9     	Black=16     Best:        	White=3     	Black=3} 0-1

[Event "1000GM Spring GM-B 2024"]
[Site "New York"]
[Date "2024.03.28"]
[Round "2.1"]
[White "Eidelman, Gabriel"]
[Black "Paragua, Mark"]
[Result "1/2-1/2"]
[ECO "B08"]
[WhiteElo "2374"]
[BlackElo "2451"]
[Annotator "TA"]
[PlyCount "67"]
[EventDate "2024.03.26"]
[EventType "tourn"]
[EventCountry "USA"]
[SourceTitle "playchess.com"]
[Source "ChessBase"]
[SourceQuality "1"]
[TimeControl "5400+30"]

{[%evp 14,67,39,47,51,33,44,35,33,32,42,19,27,33,47,35,30,22,11,16,54,52,60,43,52,39,41,31,44,22,42,29,51,35,35,0,8,8,26,15,14,0,0,0,0,0,0,0,0,0,0,1,10,2,7,4]} 1. d4 {[%emt 0:00:03]} Nf6 {[%emt 0:06:31]} 2. Nf3 {[%emt 0:00:10]} g6 {[%emt 0:00:07]} 3. Nc3 {[%emt 0:00:07]} Bg7 {[%emt 0:00:37]} 4. e4 {[%emt 0:00:08]} d6 {[%emt 0:00:13]} 5. Be2 {[%emt 0:00:12]} O-O {[%emt 0:00:10]} 6. O-O {[%emt 0:00:08]} Nc6 {[%emt 0:00:16]} 7. d5 {[%emt 0:00:36]} Nb8 {[%emt 0:00:05][%cal Bc6b8,Bb8d7,Bd7e5,Be5c4][%mdl 32]} 8. Be3 {[%emt 0:01:34]} e5 {[%emt 0:03:12]} 9. Nd2 {[%emt 0:06:15]} Ne8 {[%emt 0:03:14]} 10. Nc4 {[%emt 0:03:31]} Nd7 {[%emt 0:03:52] White is slightly better.} 11. Qd2 {[%emt 0:04:52]} f5 {[%emt 0:03:33] [#] aiming for ...f4.} 12. exf5 {[%emt 0:01:31]} gxf5 {[%emt 0:00:08] White must now prevent ...f4.} 13. f4 {[%emt 0:00:54]} Nef6 {[%emt 0:01:12]} 14. fxe5 {[%emt 0:04:48]} (14. Rae1 {simplifies} a6 15. a3 Qe7 16. fxe5 Nxe5 17. Bg5) 14... Nxe5 {[%emt 0:03:37]} 15. Bh6 {[%emt 0:13:15]} (15. Rae1 {simplifies} Bd7 16. Nxe5 dxe5 17. Bd3) 15... Bxh6 {[%emt 0:04:32]} 16. Qxh6 {[%emt 0:00:12]} Nfg4 {[%emt 0:00:50] Inhibits Ne3.} 17. Bxg4 {[%emt 0:03:42]} Nxc4 {[%emt 0:02:04]} 18. Be2 {[%emt 0:01:04]} Ne5 {[%emt 0:00:28]} 19. Rf2 {[%emt 0:11:31]} Bd7 {[%emt 0:01:50]} 20. Raf1 {[%emt 0:00:30][%cal Oc3e4]} Qe7 {[%emt 0:00:56]} 21. Qd2 {[%emt 0:03:16]} a6 {[%emt 0:05:51] Against Nb5} 22. Bd3 {[%emt 0:02:19]} (22. Bh5 {is more complex.} Qh4 23. Qh6 Kh8 24. Rf4) 22... Nxd3 {[%emt 0:01:27]} 23. Qxd3 {[%emt 0:00:09]} Rae8 {[%emt 0:01:05]} 24. Qc4 {[%emt 0:04:03]} b5 {[%emt 0:02:28]} 25. Qf4 {[%emt 0:10:18]} Qe3 {[%emt 0:03:35]} 26. Qxe3 {[%emt 0:04:42]} Rxe3 {[%emt 0:00:06] The position is equal.} 27. Re2 {[%emt 0:04:53]} Rfe8 {[%emt 0:03:33]} 28. Rxe3 {[%emt 0:02:24]} Rxe3 $11 {[%emt 0:02:32][%mdl 4096] Endgame. KRB-KRN} 29. Kf2 {[%emt 0:00:07]} Re5 {[%emt 0:01:13]} 30. a3 {[%emt 0:00:29]} Kg7 {[%emt 0:00:59]} 31. Rd1 {[%emt 0:02:57]} Kf6 {[%emt 0:45:44]} 32. Rd4 {[%emt 0:01:25]} Re7 {[%emt 0:00:00]} 33. g3 {[%emt 0:00:29]} Be8 {[%emt 0:00:00]} 34. b3 {[%emt 0:09:15] Weighted Error Value: White=0.08 (flawless) /Black=0.07 (flawless) .  Inaccurate:     	White=1     	Black=1      OK:         	White=8     	Black=10     Best:        	---       	Black=1} 1/2-1/2

[Event "1000GM Spring GM-B 2024"]
[Site "New York"]
[Date "2024.03.28"]
[Round "2.2"]
[White "Luo, Terry"]
[Black "Furfine, Jacob"]
[Result "1/2-1/2"]
[ECO "A58"]
[WhiteElo "2333"]
[BlackElo "2343"]
[Annotator "RC"]
[PlyCount "64"]
[EventDate "2024.03.26"]
[EventType "tourn"]
[EventCountry "USA"]
[SourceTitle "playchess.com"]
[Source "ChessBase"]
[SourceQuality "1"]
[TimeControl "5400+30"]

1. d4 {[%emt 0:00:02]} Nf6 {[%emt 0:00:06]} 2. c4 {[%emt 0:00:02]} c5 {[%emt 0:00:05]} 3. d5 {[%emt 0:00:03]} b5 {[%emt 0:00:04]} 4. cxb5 {[%emt 0:00:03]} a6 {[%emt 0:00:04]} 5. bxa6 {[%emt 0:00:06]} e6 {[%emt 0:00:08]} 6. Nc3 {[%emt 0:00:03]} exd5 {[%emt 0:00:15]} 7. Nxd5 {[%emt 0:00:03]} Be7 {[%emt 0:00:25]} 8. Nxe7 {[%emt 0:04:14]} Qxe7 {[%emt 0:00:03]} 9. e3 {[%emt 0:00:04]} O-O {[%emt 0:01:27]} 10. Nf3 {[%emt 0:00:03]} d5 {[%emt 0:04:56]} 11. Be2 {[%emt 0:00:23]} Bxa6 {[%emt 0:00:19]} 12. O-O {[%emt 0:04:10]} Rd8 {[%emt 0:07:49]} 13. Bxa6 {[%emt 0:07:30]} Nxa6 {[%emt 0:00:33]} 14. Bd2 {[%emt 0:02:26]} Ne4 {[%emt 1:21:16]} 15. Qc2 {[%emt 0:05:06]} Qb7 {[%emt 0:00:00]} 16. Rfd1 {[%emt 0:04:15]} c4 {[%emt 0:00:00]} 17. Be1 {[%emt 0:07:53]} Nac5 {[%emt 0:00:00]} 18. Nd2 {[%emt 0:04:29]} Nd6 {[%emt 0:00:00]} 19. b3 {[%emt 0:09:09]} Qa6 {[%emt 0:00:00]} 20. bxc4 {[%emt 0:07:23]} dxc4 {[%emt 0:00:00]} 21. Nf3 {[%emt 0:00:06]} Nd3 {[%emt 0:00:00]} 22. Nd4 {[%emt 0:05:02]} Ne4 {[%emt 0:00:00]} 23. a4 {[%emt 0:05:47]} h6 {[%emt 0:00:00]} 24. Nb5 {[%emt 0:05:26]} Rdc8 {[%emt 0:00:00]} 25. f3 {[%emt 0:02:02]} Nec5 {[%emt 0:00:00]} 26. Bg3 {[%emt 0:03:42]} Nb3 {[%emt 0:00:00]} 27. Rab1 {[%emt 0:01:44]} Qe6 {[%emt 0:00:00]} 28. Nd6 {[%emt 0:07:00]} Qxe3+ {[%emt 0:00:00]} 29. Kh1 {[%emt 0:00:00]} Nd4 {[%emt 0:00:00]} 30. Nxc4 {[%emt 0:03:46]} Nxc2 {[%emt 0:00:00]} 31. Nxe3 {[%emt 0:00:02]} Nxe3 {[%emt 0:00:00]} 32. Rxd3 {[%emt 0:00:01]} Nc2 {[%emt 0:00:00]} 1/2-1/2

[Event "1000GM Spring GM-B 2024"]
[Site "New York"]
[Date "2024.03.28"]
[Round "2.3"]
[White "Sinha, Sahil"]
[Black "Mandizha, Farai"]
[Result "1/2-1/2"]
[ECO "E32"]
[WhiteElo "2299"]
[BlackElo "2380"]
[Annotator "RC"]
[PlyCount "51"]
[EventDate "2024.03.26"]
[EventType "tourn"]
[EventCountry "USA"]
[SourceTitle "playchess.com"]
[Source "ChessBase"]
[SourceQuality "1"]
[TimeControl "5400+30"]

1. d4 Nf6 {[%emt 0:29:25]} 2. c4 {[%emt 0:00:13]} e6 {[%emt 0:01:54]} 3. Nc3 {[%emt 0:00:34]} Bb4 {[%emt 0:00:08]} 4. Qc2 {[%emt 0:00:07]} O-O {[%emt 0:01:51]} 5. Nf3 {[%emt 0:00:44]} b6 {[%emt 0:00:21]} 6. e4 {[%emt 0:06:06]} c5 {[%emt 0:03:08]} 7. d5 {[%emt 0:04:12]} exd5 {[%emt 0:00:53]} 8. exd5 {[%emt 0:00:28]} Re8+ {[%emt 0:00:48]} 9. Be2 {[%emt 0:01:04]} Ba6 {[%emt 0:04:20]} 10. Be3 {[%emt 0:03:36]} d6 {[%emt 0:01:26]} 11. Rd1 {[%emt 0:04:36]} Nbd7 {[%emt 0:10:11]} 12. O-O {[%emt 0:02:39]} Bxc3 {[%emt 0:00:32]} 13. bxc3 {[%emt 0:03:32]} h6 {[%emt 0:03:06]} 14. h3 {[%emt 0:03:08]} Nf8 {[%emt 0:09:11]} 15. Bd3 {[%emt 0:03:03]} g5 {[%emt 0:06:03]} 16. Rde1 {[%emt 0:11:39]} Kg7 {[%emt 0:02:07]} 17. Nd2 {[%emt 0:01:50]} Ng6 {[%emt 0:00:22]} 18. a4 {[%emt 0:05:24]} Re7 {[%emt 0:00:55]} 19. Nf3 {[%emt 0:03:41]} Qd7 {[%emt 0:02:24]} 20. Bd2 {[%emt 0:02:19]} Rae8 {[%emt 0:00:24]} 21. Rxe7 {[%emt 0:00:46]} Rxe7 {[%emt 0:00:03]} 22. a5 {[%emt 0:01:32]} bxa5 {[%emt 0:04:06]} 23. Ra1 {[%emt 0:00:20]} Bc8 {[%emt 0:02:16]} 24. Rxa5 {[%emt 0:10:40]} Qc7 {[%emt 0:00:02]} 25. Ra1 {[%emt 0:00:45]} Nd7 {[%emt 0:00:19]} 26. h4 {[%emt 0:03:36]} 1/2-1/2